[Event "Early-Titled-Tuesday-Blitz-February-20-2024"]
[Site "Chess.com"]
[Date "2024.02.20"]
[Round "4"]
[White "maciek_92"]
[Black "IriBu"]
[Result "1-0"]
[WhiteElo "2813"]
[BlackElo "2589"]
[TimeControl "180+1"]
[EndTime "8:39:48 PST"]
[Termination "maciek_92 won by checkmate"]

1. c4 {[%clk 0:03:00.9]} 1... Nf6 {[%clk 0:02:56.1]} 2. Nc3 {[%clk 0:03:01.1]}
2... g6 {[%clk 0:02:56]} 3. d4 {[%clk 0:03:01.3]} 3... Bg7 {[%clk 0:02:56.2]} 4.
e4 {[%clk 0:03:01.6]} 4... d6 {[%clk 0:02:56.6]} 5. Be2 {[%clk 0:03:00.4]} 5...
O-O {[%clk 0:02:56.4]} 6. g4 {[%clk 0:02:58.2]} 6... c5 {[%clk 0:02:55.7]} 7. d5
{[%clk 0:02:58.5]} 7... e6 {[%clk 0:02:55.3]} 8. g5 {[%clk 0:02:58.2]} 8... Nfd7
{[%clk 0:02:22.9]} 9. dxe6 {[%clk 0:02:55.8]} 9... fxe6 {[%clk 0:02:23.2]} 10.
Qxd6 {[%clk 0:02:55]} 10... Ne5 {[%clk 0:02:06.6]} 11. Qxd8 {[%clk 0:02:53.7]}
11... Rxd8 {[%clk 0:02:07.5]} 12. Be3 {[%clk 0:02:45.3]} 12... Na6 {[%clk
0:01:48.9]} 13. f4 {[%clk 0:02:37.5]} 13... Nd3+ {[%clk 0:01:47.6]} 14. Bxd3
{[%clk 0:02:36.5]} 14... Bxc3+ {[%clk 0:01:41.3]} 15. bxc3 {[%clk 0:02:33.5]}
15... Rxd3 {[%clk 0:01:41.5]} 16. Kf2 {[%clk 0:02:30.3]} 16... Bd7 {[%clk
0:01:32.4]} 17. Ne2 {[%clk 0:02:30]} 17... Bc6 {[%clk 0:01:32.3]} 18. Rhd1
{[%clk 0:02:29.1]} 18... Bxe4 {[%clk 0:01:30.8]} 19. Ng3 {[%clk 0:02:29.1]}
19... Rxd1 {[%clk 0:01:25]} 20. Rxd1 {[%clk 0:02:30]} 20... Bc6 {[%clk
0:01:24.3]} 21. h4 {[%clk 0:02:21.2]} 21... Kf7 {[%clk 0:01:24.5]} 22. h5 {[%clk
0:02:21.2]} 22... Rh8 {[%clk 0:01:16.9]} 23. f5 {[%clk 0:02:02.1]} 23... exf5
{[%clk 0:01:02.9]} 24. Rd6 {[%clk 0:02:01]} 24... Ke7 {[%clk 0:01:02.5]} 25. Bf4
{[%clk 0:01:59]} 25... Be8 {[%clk 0:00:52.1]} 26. Rf6 {[%clk 0:01:54.7]} 26...
Rg8 {[%clk 0:00:49.1]} 27. Bd6+ {[%clk 0:01:51]} 27... Kd7 {[%clk 0:00:48.5]}
28. h6 {[%clk 0:01:49.9]} 28... b6 {[%clk 0:00:44.9]} 29. Be5 {[%clk 0:01:40.8]}
29... Nc7 {[%clk 0:00:40.4]} 30. Bxc7 {[%clk 0:01:39.9]} 30... Kxc7 {[%clk
0:00:41.3]} 31. Ne2 {[%clk 0:01:40.4]} 31... Kd7 {[%clk 0:00:22.3]} 32. Nf4
{[%clk 0:01:40.1]} 32... Ke7 {[%clk 0:00:22.9]} 33. Ke3 {[%clk 0:01:27.7]} 33...
Bd7 {[%clk 0:00:18.9]} 34. Nd5+ {[%clk 0:01:25]} 34... Ke8 {[%clk 0:00:18.8]}
35. Kf4 {[%clk 0:01:25.8]} 35... Rh8 {[%clk 0:00:18.2]} 36. Rd6 {[%clk
0:01:23.5]} 36... Bc8 {[%clk 0:00:16.4]} 37. Ke5 {[%clk 0:01:20.8]} 37... f4
{[%clk 0:00:11]} 38. Kxf4 {[%clk 0:01:18.7]} 38... Rf8+ {[%clk 0:00:10.8]} 39.
Nf6+ {[%clk 0:01:15.9]} 39... Ke7 {[%clk 0:00:10.6]} 40. Rc6 {[%clk 0:01:12.7]}
40... Bd7 {[%clk 0:00:10.1]} 41. Rc7 {[%clk 0:01:13]} 41... Ke6 {[%clk
0:00:09.7]} 42. Rxa7 {[%clk 0:01:09.8]} 42... Rf7 {[%clk 0:00:06.4]} 43. Rb7
{[%clk 0:01:06.9]} 43... Rf8 {[%clk 0:00:04.7]} 44. Rxb6+ {[%clk 0:01:06.5]}
44... Ke7 {[%clk 0:00:05.2]} 45. Ke5 {[%clk 0:01:06.7]} 45... Bc8 {[%clk
0:00:02.8]} 46. Rc6 {[%clk 0:01:05.3]} 46... Kd8 {[%clk 0:00:02]} 47. Nxh7
{[%clk 0:01:00.1]} 47... Rf5+ {[%clk 0:00:02.1]} 48. Kd6 {[%clk 0:01:00.6]}
48... Rf4 {[%clk 0:00:01.9]} 49. Rxc5 {[%clk 0:00:59.8]} 49... Rf3 {[%clk
0:00:01.5]} 50. Nf6 {[%clk 0:00:49.9]} 50... Bf5 {[%clk 0:00:01.8]} 51. h7
{[%clk 0:00:47.9]} 51... Rd3+ {[%clk 0:00:02.4]} 52. Rd5 {[%clk 0:00:47.8]}
52... Rh3 {[%clk 0:00:03.3]} 53. Rxf5 {[%clk 0:00:45.7]} 53... gxf5 {[%clk
0:00:02.9]} 54. g6 {[%clk 0:00:46.6]} 54... Rh6 {[%clk 0:00:02.9]} 55. Ke5
{[%clk 0:00:45.6]} 55... f4 {[%clk 0:00:03]} 56. Kxf4 {[%clk 0:00:45.7]} 56...
Ke7 {[%clk 0:00:03.6]} 57. Ng8+ {[%clk 0:00:45.4]} 57... Kf8 {[%clk 0:00:04.5]}
58. Nxh6 {[%clk 0:00:46.3]} 58... Kg7 {[%clk 0:00:05.2]} 59. Kg5 {[%clk
0:00:45.4]} 59... Kh8 {[%clk 0:00:05.6]} 60. a4 {[%clk 0:00:45.8]} 60... Kg7
{[%clk 0:00:06]} 61. Nf5+ {[%clk 0:00:46.5]} 61... Kh8 {[%clk 0:00:06.3]} 62.
Nd6 {[%clk 0:00:45.9]} 62... Kg7 {[%clk 0:00:06.6]} 63. a5 {[%clk 0:00:46.5]}
63... Kh8 {[%clk 0:00:06.9]} 64. Nf7+ {[%clk 0:00:46.2]} 64... Kg7 {[%clk
0:00:07.8]} 65. h8=Q# {[%clk 0:00:46.9]} 1-0

[Event "Early-Titled-Tuesday-Blitz-February-20-2024"]
[Site "Chess.com"]
[Date "2024.02.20"]
[Round "4"]
[White "FARIZA2018"]
[Black "Elsa167"]
[Result "0-1"]
[WhiteElo "2572"]
[BlackElo "2898"]
[TimeControl "180+1"]
[EndTime "8:39:49 PST"]
[Termination "Elsa167 won by resignation"]

1. e4 {[%clk 0:03:00.9]} 1... e6 {[%clk 0:03:00.3]} 2. d4 {[%clk 0:03:01]} 2...
d5 {[%clk 0:03:01]} 3. Nd2 {[%clk 0:03:01.6]} 3... c5 {[%clk 0:03:00.2]} 4. exd5
{[%clk 0:03:01.5]} 4... Qxd5 {[%clk 0:03:01.1]} 5. Ngf3 {[%clk 0:03:01.3]} 5...
cxd4 {[%clk 0:03:01.3]} 6. Bc4 {[%clk 0:03:01.9]} 6... Qd7 {[%clk 0:03:01.5]} 7.
O-O {[%clk 0:03:02]} 7... Nc6 {[%clk 0:03:01.8]} 8. Nb3 {[%clk 0:03:02.2]} 8...
a6 {[%clk 0:03:01.8]} 9. Nbxd4 {[%clk 0:03:01.8]} 9... Nxd4 {[%clk 0:03:02.7]}
10. Nxd4 {[%clk 0:03:02]} 10... Qc7 {[%clk 0:03:03]} 11. Bb3 {[%clk 0:02:59.6]}
11... Bd6 {[%clk 0:03:03.3]} 12. Re1 {[%clk 0:02:49.6]} 12... Ne7 {[%clk
0:03:01.6]} 13. Qh5 {[%clk 0:02:31.7]} 13... Ng6 {[%clk 0:02:40.1]} 14. c3
{[%clk 0:02:25.9]} 14... Bd7 {[%clk 0:02:33.4]} 15. Nf5 {[%clk 0:02:05]} 15...
Be5 {[%clk 0:02:29.8]} 16. Ne3 {[%clk 0:01:50.8]} 16... Bc6 {[%clk 0:01:57]} 17.
Nc4 {[%clk 0:01:45.5]} 17... Bf4 {[%clk 0:01:53.1]} 18. Be3 {[%clk 0:01:26]}
18... O-O {[%clk 0:01:43.5]} 19. Rad1 {[%clk 0:01:19.3]} 19... Bxe3 {[%clk
0:01:41.7]} 20. Nxe3 {[%clk 0:01:19.4]} 20... Rad8 {[%clk 0:01:40.5]} 21. Bc2
{[%clk 0:01:15.5]} 21... Qb6 {[%clk 0:01:26.2]} 22. b3 {[%clk 0:01:11.1]} 22...
Qc7 {[%clk 0:01:19]} 23. c4 {[%clk 0:01:10.3]} 23... b6 {[%clk 0:01:10.4]} 24.
h3 {[%clk 0:01:08.1]} 24... a5 {[%clk 0:01:10.6]} 25. Ng4 {[%clk 0:00:51.2]}
25... Bxg2 {[%clk 0:00:57.2]} 26. Bxg6 {[%clk 0:00:46.1]} 26... hxg6 {[%clk
0:00:56.8]} 27. Qh4 {[%clk 0:00:42.3]} 27... Bb7 {[%clk 0:00:45.1]} 28. Rxd8
{[%clk 0:00:34.3]} 28... Rxd8 {[%clk 0:00:46]} 29. Ne5 {[%clk 0:00:30.2]} 29...
g5 {[%clk 0:00:31.2]} 30. Qg3 {[%clk 0:00:29.3]} 30... f6 {[%clk 0:00:26.6]} 31.
Ng4 {[%clk 0:00:28.7]} 31... Qxg3+ {[%clk 0:00:19]} 32. fxg3 {[%clk 0:00:28.8]}
32... e5 {[%clk 0:00:19.5]} 33. Re2 {[%clk 0:00:27.5]} 33... Kf7 {[%clk
0:00:17.7]} 34. Ne3 {[%clk 0:00:26.4]} 34... Ke6 {[%clk 0:00:17.8]} 35. Kf2
{[%clk 0:00:26.8]} 35... Rd3 {[%clk 0:00:16.6]} 36. g4 {[%clk 0:00:26.1]} 36...
g6 {[%clk 0:00:16.1]} 37. Rc2 {[%clk 0:00:25]} 37... f5 {[%clk 0:00:15.9]} 38.
Ke2 {[%clk 0:00:21.3]} 38... e4 {[%clk 0:00:16]} 39. gxf5+ {[%clk 0:00:16.6]}
39... gxf5 {[%clk 0:00:16.3]} 40. c5 {[%clk 0:00:16.9]} 40... f4 {[%clk
0:00:16.9]} 41. Nc4 {[%clk 0:00:13.4]} 41... bxc5 {[%clk 0:00:17.3]} 42. Nxa5
{[%clk 0:00:13.5]} 42... Ba6 {[%clk 0:00:15.9]} 43. Nc4 {[%clk 0:00:12.6]} 43...
Rxh3 {[%clk 0:00:14.4]} 44. Rd2 {[%clk 0:00:10.3]} 44... Bxc4+ {[%clk
0:00:13.9]} 45. bxc4 {[%clk 0:00:10.4]} 45... Rh2+ {[%clk 0:00:14.5]} 0-1

[Event "Early-Titled-Tuesday-Blitz-February-20-2024"]
[Site "Chess.com"]
[Date "2024.02.20"]
[Round "4"]
[White "EsmeraldasAnderson03"]
[Black "BashirliSaadat"]
[Result "1-0"]
[WhiteElo "2536"]
[BlackElo "2354"]
[TimeControl "180+1"]
[EndTime "8:39:50 PST"]
[Termination "EsmeraldasAnderson03 won by resignation"]

1. d4 {[%clk 0:02:41.8]} 1... Nf6 {[%clk 0:02:57.7]} 2. c4 {[%clk 0:02:40.3]}
2... g6 {[%clk 0:02:57.6]} 3. Nc3 {[%clk 0:02:40.6]} 3... Bg7 {[%clk 0:02:57.8]}
4. e4 {[%clk 0:02:40.8]} 4... d6 {[%clk 0:02:58.1]} 5. Be2 {[%clk 0:02:41.5]}
5... O-O {[%clk 0:02:58.5]} 6. Be3 {[%clk 0:02:42.1]} 6... c5 {[%clk 0:02:47.9]}
7. dxc5 {[%clk 0:02:37.1]} 7... Qa5 {[%clk 0:02:48.3]} 8. f3 {[%clk 0:02:29.1]}
8... dxc5 {[%clk 0:02:47]} 9. Bd3 {[%clk 0:02:17.5]} 9... Nc6 {[%clk 0:02:46.7]}
10. Qc2 {[%clk 0:02:15.1]} 10... Nb4 {[%clk 0:02:44.8]} 11. Qe2 {[%clk 0:02:14]}
11... Nxd3+ {[%clk 0:02:41.7]} 12. Qxd3 {[%clk 0:02:14.9]} 12... Be6 {[%clk
0:02:41.9]} 13. Nh3 {[%clk 0:02:08.2]} 13... Rfd8 {[%clk 0:02:41.2]} 14. Qe2
{[%clk 0:02:08.9]} 14... Qb4 {[%clk 0:02:39.2]} 15. a3 {[%clk 0:01:50.4]} 15...
Qxc4 {[%clk 0:02:29.2]} 16. Qxc4 {[%clk 0:01:49.9]} 16... Bxc4 {[%clk
0:02:29.1]} 17. Bxc5 {[%clk 0:01:50.2]} 17... Rd7 {[%clk 0:02:25.1]} 18. Rd1
{[%clk 0:01:43.5]} 18... Rxd1+ {[%clk 0:02:16.5]} 19. Kxd1 {[%clk 0:01:44.4]}
19... Rd8+ {[%clk 0:02:16.4]} 20. Kc1 {[%clk 0:01:43.8]} 20... Bh6+ {[%clk
0:02:08.9]} 21. Kc2 {[%clk 0:01:37.8]} 21... Rd2+ {[%clk 0:02:08]} 22. Kc1
{[%clk 0:01:35.5]} 22... Rd5+ {[%clk 0:02:02.6]} 23. Kb1 {[%clk 0:01:31.3]}
23... Rxc5 {[%clk 0:02:02.7]} 24. Rd1 {[%clk 0:01:30.1]} 24... Kg7 {[%clk
0:01:58.8]} 25. Nf2 {[%clk 0:01:29.2]} 25... Be3 {[%clk 0:01:57.3]} 26. Nh3
{[%clk 0:01:25.4]} 26... Rc7 {[%clk 0:01:54.8]} 27. g4 {[%clk 0:01:22]} 27...
Rd7 {[%clk 0:01:53.7]} 28. Re1 {[%clk 0:01:21.5]} 28... Bd2 {[%clk 0:01:53]} 29.
Rg1 {[%clk 0:01:22]} 29... Bxc3 {[%clk 0:01:53]} 30. bxc3 {[%clk 0:01:22.9]}
30... Rd3 {[%clk 0:01:52.2]} 31. g5 {[%clk 0:01:22]} 31... Nd7 {[%clk
0:01:49.5]} 32. Kb2 {[%clk 0:01:15.6]} 32... Rxf3 {[%clk 0:01:49.1]} 33. Rg3
{[%clk 0:01:15.7]} 33... Rf2+ {[%clk 0:01:47]} 34. Nxf2 {[%clk 0:01:15.6]} 34...
Nc5 {[%clk 0:01:45.1]} 35. a4 {[%clk 0:01:13.3]} 35... Nxa4+ {[%clk 0:01:44.5]}
36. Ka3 {[%clk 0:01:14]} 36... Nb6 {[%clk 0:01:43]} 37. Kb4 {[%clk 0:01:14.7]}
37... h6 {[%clk 0:01:37.9]} 38. gxh6+ {[%clk 0:01:12.5]} 38... Kxh6 {[%clk
0:01:37.9]} 39. Ng4+ {[%clk 0:01:13.4]} 39... Kg7 {[%clk 0:01:37]} 40. Ne5
{[%clk 0:01:14.3]} 40... Be6 {[%clk 0:01:36]} 41. Nd3 {[%clk 0:01:08.7]} 41...
Nc8 {[%clk 0:01:01.9]} 42. Nc5 {[%clk 0:01:07.7]} 42... Nd6 {[%clk 0:00:53]} 43.
e5 {[%clk 0:01:02.4]} 43... Nf5 {[%clk 0:00:52.8]} 44. Rd3 {[%clk 0:01:02.9]}
44... b6 {[%clk 0:00:33.1]} 45. Nxe6+ {[%clk 0:01:02.4]} 45... fxe6 {[%clk
0:00:33.6]} 46. Rd7 {[%clk 0:01:03.2]} 46... a6 {[%clk 0:00:30.3]} 47. Ra7
{[%clk 0:00:59.9]} 47... a5+ {[%clk 0:00:26.2]} 48. Kb5 {[%clk 0:01:00]} 48...
Kf7 {[%clk 0:00:23.8]} 49. Kxb6 {[%clk 0:00:59.5]} 49... Ne3 {[%clk 0:00:24.2]}
50. Kb5 {[%clk 0:00:59.1]} 50... Ng4 {[%clk 0:00:21.9]} 51. c4 {[%clk
0:00:53.8]} 51... Nxe5 {[%clk 0:00:18.1]} 52. c5 {[%clk 0:00:54.5]} 52... Ke8
{[%clk 0:00:14.9]} 53. c6 {[%clk 0:00:54.9]} 53... Kd8 {[%clk 0:00:10.7]} 54.
Kb6 {[%clk 0:00:49.5]} 54... Nc4+ {[%clk 0:00:08.5]} 55. Kb7 {[%clk 0:00:49.7]}
55... Nd6+ {[%clk 0:00:07.2]} 56. Kb8 {[%clk 0:00:50.2]} 56... e5 {[%clk
0:00:04.9]} 57. Rd7+ {[%clk 0:00:47.4]} 57... Ke8 {[%clk 0:00:04.5]} 58. Rxd6
{[%clk 0:00:47.8]} 58... exd6 {[%clk 0:00:04.4]} 59. c7 {[%clk 0:00:48.7]} 59...
e4 {[%clk 0:00:04.2]} 60. c8=Q+ {[%clk 0:00:49.6]} 60... Ke7 {[%clk 0:00:04.7]}
61. Qb7+ {[%clk 0:00:48.3]} 61... Kf6 {[%clk 0:00:04.4]} 62. Qxe4 {[%clk
0:00:49.2]} 62... g5 {[%clk 0:00:04.3]} 63. Qa4 {[%clk 0:00:50.1]} 1-0

[Event "Early-Titled-Tuesday-Blitz-February-20-2024"]
[Site "Chess.com"]
[Date "2024.02.20"]
[Round "4"]
[White "Boundless_Strike"]
[Black "Angry_Twin"]
[Result "1-0"]
[WhiteElo "2629"]
[BlackElo "2967"]
[TimeControl "180+1"]
[EndTime "8:39:51 PST"]
[Termination "Boundless_Strike won by checkmate"]

1. d4 {[%clk 0:03:00.9]} 1... Nf6 {[%clk 0:02:38.6]} 2. f3 {[%clk 0:03:00.4]}
2... d5 {[%clk 0:02:37.6]} 3. e4 {[%clk 0:03:00.8]} 3... dxe4 {[%clk 0:02:37.9]}
4. Nc3 {[%clk 0:03:01]} 4... exf3 {[%clk 0:02:36.5]} 5. Nxf3 {[%clk 0:03:01.9]}
5... Bf5 {[%clk 0:02:34.8]} 6. Ne5 {[%clk 0:03:01.7]} 6... e6 {[%clk 0:02:33]}
7. g4 {[%clk 0:03:01.6]} 7... Be4 {[%clk 0:02:14.9]} 8. Nxe4 {[%clk 0:03:01.2]}
8... Nxe4 {[%clk 0:02:15.2]} 9. Qf3 {[%clk 0:03:01.8]} 9... Nd6 {[%clk
0:02:14.5]} 10. Bf4 {[%clk 0:02:42.8]} 10... f6 {[%clk 0:02:11.4]} 11. O-O-O
{[%clk 0:02:40.5]} 11... Be7 {[%clk 0:01:59.8]} 12. Nd3 {[%clk 0:02:16.3]} 12...
O-O {[%clk 0:01:25]} 13. Nc5 {[%clk 0:01:17.2]} 13... Qc8 {[%clk 0:01:23.6]} 14.
Qb3 {[%clk 0:01:07]} 14... Kh8 {[%clk 0:01:14.8]} 15. Nxe6 {[%clk 0:01:04]}
15... Re8 {[%clk 0:01:14.7]} 16. h4 {[%clk 0:00:54.2]} 16... Nc6 {[%clk
0:01:10.1]} 17. d5 {[%clk 0:00:53.9]} 17... Ne5 {[%clk 0:01:09.8]} 18. g5 {[%clk
0:00:45.4]} 18... Ng6 {[%clk 0:00:47.4]} 19. Bg3 {[%clk 0:00:30]} 19... Nf8
{[%clk 0:00:46.3]} 20. Bh3 {[%clk 0:00:26.5]} 20... Nxe6 {[%clk 0:00:44.4]} 21.
Bxe6 {[%clk 0:00:26.3]} 21... Qd8 {[%clk 0:00:43.6]} 22. h5 {[%clk 0:00:24.8]}
22... Ne4 {[%clk 0:00:32.4]} 23. h6 {[%clk 0:00:22.4]} 23... g6 {[%clk
0:00:32.6]} 24. gxf6 {[%clk 0:00:14.9]} 24... Bxf6 {[%clk 0:00:32.5]} 25. Be1
{[%clk 0:00:15]} 25... Qd6 {[%clk 0:00:28.5]} 26. Rf1 {[%clk 0:00:13.8]} 26...
Bg5+ {[%clk 0:00:19.3]} 27. Kb1 {[%clk 0:00:14]} 27... Rxe6 {[%clk 0:00:19.3]}
28. Bb4 {[%clk 0:00:11.2]} 28... Nc5 {[%clk 0:00:08.6]} 29. Bxc5 {[%clk
0:00:08.9]} 29... Qxc5 {[%clk 0:00:07]} 30. dxe6 {[%clk 0:00:09.3]} 30... Re8
{[%clk 0:00:07.4]} 31. Rd5 {[%clk 0:00:08.5]} 31... Qe3 {[%clk 0:00:03.7]} 32.
Qxe3 {[%clk 0:00:07.2]} 32... Bxe3 {[%clk 0:00:04.6]} 33. e7 {[%clk 0:00:07.9]}
33... Bxh6 {[%clk 0:00:01.7]} 34. Rd8 {[%clk 0:00:07.9]} 34... Kg7 {[%clk
0:00:02.6]} 35. Rxe8 {[%clk 0:00:08.1]} 35... Bg5 {[%clk 0:00:03.5]} 36. Rg8+
{[%clk 0:00:08]} 36... Kh6 {[%clk 0:00:03.7]} 37. e8=Q {[%clk 0:00:08.3]} 37...
Bf6 {[%clk 0:00:04.6]} 38. Rxf6 {[%clk 0:00:07.6]} 38... Kg5 {[%clk 0:00:05.3]}
39. Qe5+ {[%clk 0:00:07.8]} 39... Kh6 {[%clk 0:00:05.6]} 40. Rfxg6+ {[%clk
0:00:07.5]} 40... hxg6 {[%clk 0:00:05.9]} 41. Qf4+ {[%clk 0:00:07.5]} 41... Kh7
{[%clk 0:00:06.1]} 42. Qf7+ {[%clk 0:00:07.5]} 42... Kh6 {[%clk 0:00:07]} 43.
Qxg6# {[%clk 0:00:08.4]} 1-0

[Event "Early-Titled-Tuesday-Blitz-February-20-2024"]
[Site "Chess.com"]
[Date "2024.02.20"]
[Round "4"]
[White "Christ_is_alive"]
[Black "zajka-molotok"]
[Result "0-1"]
[WhiteElo "2280"]
[BlackElo "2504"]
[TimeControl "180+1"]
[EndTime "8:39:51 PST"]
[Termination "zajka-molotok won on time"]

1. e4 {[%clk 0:02:55.2]} 1... c5 {[%clk 0:02:58.1]} 2. Nf3 {[%clk 0:02:55.3]}
2... Nc6 {[%clk 0:02:57]} 3. d4 {[%clk 0:02:55.9]} 3... cxd4 {[%clk 0:02:55.5]}
4. Nxd4 {[%clk 0:02:56.8]} 4... Nf6 {[%clk 0:02:55.1]} 5. Nc3 {[%clk 0:02:56.8]}
5... e5 {[%clk 0:02:54.4]} 6. Ndb5 {[%clk 0:02:56.6]} 6... d6 {[%clk 0:02:54.6]}
7. Bg5 {[%clk 0:02:57.1]} 7... a6 {[%clk 0:02:54.1]} 8. Na3 {[%clk 0:02:57.7]}
8... b5 {[%clk 0:02:51.4]} 9. Nd5 {[%clk 0:02:58.3]} 9... Be7 {[%clk 0:02:47.5]}
10. Bxf6 {[%clk 0:02:58.9]} 10... Bxf6 {[%clk 0:02:42.7]} 11. c4 {[%clk
0:02:59.4]} 11... b4 {[%clk 0:02:42]} 12. Nc2 {[%clk 0:02:59.2]} 12... a5 {[%clk
0:02:27.8]} 13. g3 {[%clk 0:02:58.8]} 13... O-O {[%clk 0:02:25.2]} 14. Bg2
{[%clk 0:02:54.5]} 14... g6 {[%clk 0:02:13]} 15. Nxf6+ {[%clk 0:02:46.7]} 15...
Qxf6 {[%clk 0:02:12.3]} 16. Ne3 {[%clk 0:02:45.9]} 16... Nd4 {[%clk 0:02:08.5]}
17. O-O {[%clk 0:02:41.4]} 17... Bb7 {[%clk 0:01:51.8]} 18. Qd3 {[%clk
0:02:31.8]} 18... Rfd8 {[%clk 0:01:34.8]} 19. Rad1 {[%clk 0:02:28.9]} 19... Rac8
{[%clk 0:01:33.5]} 20. f4 {[%clk 0:01:43.6]} 20... Qg7 {[%clk 0:01:28.6]} 21. f5
{[%clk 0:01:36.6]} 21... f6 {[%clk 0:01:27.7]} 22. fxg6 {[%clk 0:01:31.9]} 22...
hxg6 {[%clk 0:01:26.2]} 23. Rf2 {[%clk 0:00:50]} 23... Rf8 {[%clk 0:01:23]} 24.
Rdf1 {[%clk 0:00:47.9]} 24... Rc7 {[%clk 0:01:18.9]} 25. Ng4 {[%clk 0:00:38.6]}
25... Rcf7 {[%clk 0:01:17.1]} 26. c5 {[%clk 0:00:35.9]} 26... Bc8 {[%clk
0:01:08.8]} 27. Ne3 {[%clk 0:00:27.8]} 27... dxc5 {[%clk 0:01:07.1]} 28. Qc4
{[%clk 0:00:28]} 28... Be6 {[%clk 0:00:50.2]} 29. Qxc5 {[%clk 0:00:26.3]} 29...
Bxa2 {[%clk 0:00:49.1]} 30. Qxa5 {[%clk 0:00:23.9]} 30... Be6 {[%clk 0:00:45.8]}
31. Qxb4 {[%clk 0:00:23]} 31... Qh6 {[%clk 0:00:43.7]} 32. Nd5 {[%clk
0:00:19.6]} 32... Bxd5 {[%clk 0:00:42.2]} 33. exd5 {[%clk 0:00:20.5]} 33... f5
{[%clk 0:00:41.9]} 34. d6 {[%clk 0:00:16.5]} 34... Rd7 {[%clk 0:00:37.2]} 35.
Qc5 {[%clk 0:00:15.1]} 35... Qe3 {[%clk 0:00:33.7]} 36. Kh1 {[%clk 0:00:11.4]}
36... Rfd8 {[%clk 0:00:31.8]} 37. Rf3 {[%clk 0:00:10.4]} 37... Qe2 {[%clk
0:00:27.9]} 38. R3f2 {[%clk 0:00:10.3]} 38... Qb5 {[%clk 0:00:24.7]} 39. Rc1
{[%clk 0:00:08.1]} 39... Rxd6 {[%clk 0:00:21.7]} 40. Qxb5 {[%clk 0:00:07.9]}
40... Nxb5 {[%clk 0:00:22.6]} 41. Rc5 {[%clk 0:00:06.8]} 41... Rd1+ {[%clk
0:00:20.5]} 42. Rf1 {[%clk 0:00:07.1]} 42... Rxf1+ {[%clk 0:00:17.9]} 43. Bxf1
{[%clk 0:00:08]} 43... Rd1 {[%clk 0:00:17.9]} 44. Rxb5 {[%clk 0:00:06.8]} 44...
Rxf1+ {[%clk 0:00:17.6]} 45. Kg2 {[%clk 0:00:07.7]} 45... Re1 {[%clk 0:00:17.3]}
46. Kf2 {[%clk 0:00:08]} 46... Re4 {[%clk 0:00:15.4]} 47. Rb7 {[%clk 0:00:05.1]}
47... Rc4 {[%clk 0:00:14]} 48. Re7 {[%clk 0:00:01.7]} 48... e4 {[%clk
0:00:13.4]} 0-1

[Event "Early-Titled-Tuesday-Blitz-February-20-2024"]
[Site "Chess.com"]
[Date "2024.02.20"]
[Round "4"]
[White "Jospem"]
[Black "VitaliyBernadskiy"]
[Result "1-0"]
[WhiteElo "3084"]
[BlackElo "2871"]
[TimeControl "180+1"]
[EndTime "8:39:52 PST"]
[Termination "Jospem won by resignation"]

1. e4 {[%clk 0:03:00.9]} 1... g6 {[%clk 0:02:58.6]} 2. d4 {[%clk 0:03:00.7]}
2... d6 {[%clk 0:02:58.6]} 3. c3 {[%clk 0:03:01]} 3... Nf6 {[%clk 0:02:58.3]} 4.
Bd3 {[%clk 0:03:01.6]} 4... Bg7 {[%clk 0:02:58.1]} 5. Nf3 {[%clk 0:03:02]} 5...
O-O {[%clk 0:02:58.3]} 6. O-O {[%clk 0:03:02.4]} 6... Nc6 {[%clk 0:02:58.5]} 7.
h3 {[%clk 0:03:02.9]} 7... e5 {[%clk 0:02:58.6]} 8. Re1 {[%clk 0:03:03.6]} 8...
h6 {[%clk 0:02:49.7]} 9. Be3 {[%clk 0:03:03.3]} 9... d5 {[%clk 0:02:42.1]} 10.
dxe5 {[%clk 0:03:03]} 10... Nxe4 {[%clk 0:02:40.8]} 11. Nbd2 {[%clk 0:03:02.5]}
11... Bf5 {[%clk 0:02:38.5]} 12. Qc2 {[%clk 0:02:56.7]} 12... Nxd2 {[%clk
0:02:37.6]} 13. Qxd2 {[%clk 0:02:57.6]} 13... Be4 {[%clk 0:02:31.6]} 14. Nd4
{[%clk 0:02:26.3]} 14... Nxe5 {[%clk 0:01:30]} 15. Bxe4 {[%clk 0:02:23.1]} 15...
dxe4 {[%clk 0:01:14.2]} 16. Bxh6 {[%clk 0:02:21.7]} 16... c5 {[%clk 0:01:04.7]}
17. Bxg7 {[%clk 0:02:21.5]} 17... Kxg7 {[%clk 0:01:04.1]} 18. Rxe4 {[%clk
0:01:41.1]} 18... cxd4 {[%clk 0:00:56.9]} 19. Rxe5 {[%clk 0:01:38.9]} 19... dxc3
{[%clk 0:00:57.1]} 20. Qxc3 {[%clk 0:01:38.9]} 20... Qf6 {[%clk 0:00:57.4]} 21.
Re3 {[%clk 0:01:37.1]} 21... Rac8 {[%clk 0:00:54.3]} 22. Qxf6+ {[%clk
0:01:34.9]} 22... Kxf6 {[%clk 0:00:55.2]} 23. Re2 {[%clk 0:01:33.7]} 23... Rfe8
{[%clk 0:00:51.7]} 24. Rae1 {[%clk 0:01:34.1]} 24... Rxe2 {[%clk 0:00:49.2]} 25.
Rxe2 {[%clk 0:01:35]} 25... a5 {[%clk 0:00:47.3]} 26. h4 {[%clk 0:01:33.2]}
26... b5 {[%clk 0:00:46.2]} 27. Kh2 {[%clk 0:01:28.5]} 27... b4 {[%clk
0:00:44.9]} 28. Kg3 {[%clk 0:01:23.5]} 28... Rc1 {[%clk 0:00:41.9]} 29. b3
{[%clk 0:01:13]} 29... Rc3+ {[%clk 0:00:37.8]} 30. f3 {[%clk 0:01:09.6]} 30...
Rd3 {[%clk 0:00:37.9]} 31. Rc2 {[%clk 0:01:08.9]} 31... a4 {[%clk 0:00:30.5]}
32. bxa4 {[%clk 0:00:58.3]} 32... Ra3 {[%clk 0:00:31.4]} 33. Kg4 {[%clk
0:00:49]} 33... Rxa4 {[%clk 0:00:29.9]} 34. f4 {[%clk 0:00:49.6]} 34... Ra5
{[%clk 0:00:26.5]} 35. g3 {[%clk 0:00:47.8]} 35... Ra3 {[%clk 0:00:24]} 36. Rb2
{[%clk 0:00:44.3]} 36... Kg7 {[%clk 0:00:23.4]} 37. f5 {[%clk 0:00:35.2]} 37...
gxf5+ {[%clk 0:00:17.3]} 38. Kxf5 {[%clk 0:00:36.1]} 38... Rxg3 {[%clk
0:00:16.8]} 39. Rxb4 {[%clk 0:00:36.3]} 39... Ra3 {[%clk 0:00:12]} 40. Rb2
{[%clk 0:00:36.9]} 40... Ra4 {[%clk 0:00:10.7]} 41. Rg2+ {[%clk 0:00:33.5]}
41... Kh6 {[%clk 0:00:09.1]} 42. h5 {[%clk 0:00:26.6]} 42... Ra5+ {[%clk
0:00:06.2]} 43. Kf6 {[%clk 0:00:27.1]} 43... Rxh5 {[%clk 0:00:06.1]} 44. a4
{[%clk 0:00:25.1]} 44... Rh1 {[%clk 0:00:03.2]} 45. Rf2 {[%clk 0:00:22.9]} 45...
Kh5 {[%clk 0:00:03]} 46. Ra2 {[%clk 0:00:19.2]} 46... Rf1+ {[%clk 0:00:02.9]}
47. Ke5 {[%clk 0:00:18]} 47... f5 {[%clk 0:00:02.4]} 48. a5 {[%clk 0:00:16.2]}
48... f4 {[%clk 0:00:03]} 49. Kf5 {[%clk 0:00:15.3]} 49... Kh4 {[%clk
0:00:02.5]} 50. a6 {[%clk 0:00:15.5]} 50... f3 {[%clk 0:00:02.5]} 51. a7 {[%clk
0:00:15.7]} 51... f2 {[%clk 0:00:01.6]} 52. a8=Q {[%clk 0:00:15.8]} 52... Rg1
{[%clk 0:00:01.5]} 53. Qh8+ {[%clk 0:00:15.2]} 1-0